[Event "Reykjavik Open 2025"]
[Site "Reykjavik"]
[Date "2025.04.10"]
[Round "3.9"]
[White "Thorfinnsson, Bjorn"]
[Black "Gorshtein, Ido"]
[Result "0-1"]
[Annotator "TA"]
[ECO "A46"]
[WhiteElo "2386"]
[BlackElo "2557"]
[PlyCount "102"]
[EventDate "2025.04.09"]
[EventType "swiss"]
[EventCountry "ISL"]
[SourceTitle "playchess.com"]
[Source "ChessBase"]
[SourceQuality "1"]
[TimeControl "40/5400+30:1800+30"]

{[%evp 9,102,4,18,0,0,0,0,0,2,1,14,14,18,19,12,10,9,-4,8,18,12,8,8,9,19,19,55,30,42,20,42,15,75,4,0,6,10,6,11,6,14,14,14,14,16,0,0,-31,-32,-32,0,0,0,-8,-8,-8,-8,-8,-8,-8,-8,-17,-8,-8,-8,-32,-32,-32,-32,-32,-32,-32,-25,-33,-33,-40,-57,-123,-121,-250,-120,-216,-99,-181,-87,-63,-51,-198,-176,-2110,-1626,-2024,-2012,-1941,-1878]} 1. d4 {[%emt 0:00:03]} Nf6 {[%emt 0:00:07]} 2. Nf3 {[%emt 0:00:06]} e6 {[%emt 0:00:47]} 3. c3 {[%emt 0:00:26]} c5 {[%emt 0:00:23]} 4. Bg5 {[%emt 0:00:50]} Qb6 {[%emt 0:01:13]} 5. Qb3 {[%emt 0:00:09]} Nc6 {[%emt 0:05:21]} 6. Qxb6 {[%emt 0:00:23] A46: 1 d4 Nf6 2 Nf3 e6: Torre, London and Colle Systems.} axb6 {[%emt 0:00:05]} 7. e3 {[%emt 0:00:22]} d5 {[%emt 0:04:56]} 8. Nbd2 {[%emt 0:00:27] The position is equal.} Bd7 {[%emt 0:06:48]} 9. a3 {[%emt 0:00:23]} Nh5 $146 {[%emt 0:02:21]} (9... Bd6 10. Bd3 O-O 11. O-O Na5 12. Bf4 Ne8 13. Bxd6 Nxd6 14. Ne5 Rfd8 15. b4 Nc6 16. Nxd7 Rxd7 17. bxc5 bxc5 18. dxc5 {½-½ Czernicki,B (2094)-Andrae,D (2111) Tarnowskie Gory Piasta Memorial 5th 2007 (4)}) 10. Bh4 {[%emt 0:04:09]} h6 {[%emt 0:01:22]} 11. g4 {[%emt 0:03:53]} Nf6 {[%emt 0:00:08]} 12. h3 {[%emt 0:00:09]} Bd6 {[%emt 0:07:52]} 13. Rg1 {[%emt 0:00:06]} g5 {[%emt 0:00:29]} 14. Bg3 {[%emt 0:00:04]} Bxg3 {[%emt 0:00:05]} 15. Rxg3 {[%emt 0:00:05]} Ke7 {[%emt 0:00:37]} 16. O-O-O {[%emt 0:02:37]} cxd4 {[%emt 0:05:39]} 17. exd4 {[%emt 0:01:43]} Ne8 {[%emt 0:00:48]} 18. Re1 {[%emt 0:01:36]} Nd6 {[%emt 0:07:23]} 19. h4 {[%emt 0:02:39]} f6 {[%emt 0:02:40]} 20. Bd3 {[%emt 0:00:42]} Rhg8 {[%emt 0:06:12]} (20... b5 $11) 21. hxg5 {[%emt 0:01:51]} (21. Nf1 $16) 21... hxg5 $11 {[%emt 0:00:09]} 22. Rh3 {[%emt 0:00:06]} Rh8 {[%emt 0:01:52]} 23. Reh1 {[%emt 0:00:15]} Rxh3 {[%emt 0:00:06]} 24. Rxh3 {[%emt 0:00:09]} Nd8 {[%emt 0:00:39]} 25. Nf1 {[%emt 0:03:00]} N8f7 {[%emt 0:00:54]} 26. Ne3 {[%emt 0:03:02]} b5 {[%emt 0:01:14]} 27. Kc2 {[%emt 0:01:01]} Nc4 {[%emt 0:06:55]} 28. Nxc4 {[%emt 0:01:33]} bxc4 {[%emt 0:00:07]} 29. Bg6 {[%emt 0:00:05]} Be8 {[%emt 0:10:25]} 30. Kd2 {[%emt 0:04:33]} Kf8 {[%emt 0:02:26]} 31. Ne1 {[%emt 0:01:38]} Kg7 {[%emt 0:01:17]} 32. Bc2 {[%emt 0:01:41]} Nh6 {[%emt 0:00:11]} 33. Ng2 {[%emt 0:00:38]} Bg6 {[%emt 0:01:45]} 34. Ne3 {[%emt 0:00:07]} Nf7 {[%emt 0:00:59]} 35. Rh2 {[%emt 0:01:17]} Nd6 {[%emt 0:00:40]} 36. f3 {[%emt 0:00:38]} Nf7 {[%emt 0:00:15]} 37. Rh3 {[%emt 0:00:10]} Bxc2 {[%emt 0:00:38]} 38. Kxc2 $15 {[%emt 0:00:56][%mdl 4096] Endgame KRN-KRN} Nh8 {[%emt 0:00:08]} 39. Ng2 {[%emt 0:10:08]} Ng6 {[%emt 0:00:07]} 40. Rh2 {[%emt 0:01:18]} Rf8 {[%emt 0:00:42]} 41. Rh5 {[%emt 0:31:13]} Re8 {[%emt 0:31:33]} 42. Kd2 {[%emt 0:05:31]} Nf4 {[%emt 0:03:08]} 43. Nxf4 {[%emt 0:10:33]} (43. Rh2 $1 $15) 43... gxf4 {[%emt 0:00:52] KR-KR} 44. Kc2 {[%emt 0:04:47]} (44. g5 $17) 44... Ra8 {[%emt 0:06:24]} (44... Rh8 $19 45. Rxh8 Kxh8) 45. Rh1 {[%emt 0:04:21]} (45. b3 $17) 45... b5 {[%emt 0:00:06]} (45... Rh8 $1 $19 {[%cal Rh8h1]} 46. Rxh8 Kxh8) 46. Rh2 {[%emt 0:03:10] [#]} (46. Re1 $17 {was called for.} Re8 47. b3) 46... Kg6 {[%emt 0:04:19]} (46... Rh8 $1 $19 {[%cal Rh8h2] and Black stays clearly on top.} 47. Re2 (47. Rxh8 Kxh8 48. b3 cxb3+ 49. Kxb3 e5 $19) 47... Kf7) 47. Kd2 {[%emt 0:02:11]} Ra7 {[%emt 0:01:36] Strongly threatening ...Rh7.} 48. Kc2 {[%emt 0:02:59] [#]} (48. Re2 $15) 48... Rh7 $1 $19 {[%emt 0:03:39]} 49. Rxh7 {[%emt 0:01:53]} (49. Re2) 49... Kxh7 {[%emt 0:00:45] Black is clearly winning.} 50. b4 {[%emt 0:00:05]} cxb3+ {[%emt 0:00:05]} 51. Kxb3 {[%emt 0:00:06]} Kg6 {[%emt 0:01:54] Weighted Error Value: White=0.39/Black=0.13 (very precise)   Mistake:       	White=7     	Black=4      Inaccurate:     	White=2     	Black=2      OK:         	White=12    	Black=20     Strong:       	---       	Black=1} 0-1

[Event "Reykjavik Open 2025"]
[Site "Reykjavik"]
[Date "2025.04.10"]
[Round "3.10"]
[White "Song, Yuxin"]
[Black "Adhiban, B.."]
[Result "1/2-1/2"]
[Annotator "TA"]
[ECO "B56"]
[WhiteElo "2371"]
[BlackElo "2554"]
[PlyCount "75"]
[EventDate "2025.04.09"]
[EventType "swiss"]
[EventCountry "ISL"]
[SourceTitle "playchess.com"]
[Source "ChessBase"]
[SourceQuality "1"]
[TimeControl "40/5400+30:1800+30"]

{[%evp 20,75,35,13,41,35,31,0,35,13,31,17,29,38,32,35,42,49,47,0,0,0,-1,-48,-10,-7,0,-7,-8,-7,-7,-7,-8,-14,-14,0,0,0,0,0,23,26,43,0,0,6,36,29,48,56,50,51,51,50,60,39,24,14]} 1. e4 {[%emt 0:00:03]} c5 {[%emt 0:00:04]} 2. Nf3 {[%emt 0:00:05]} d6 {[%emt 0:00:48]} 3. d4 {[%emt 0:00:39]} cxd4 {[%emt 0:00:04]} 4. Nxd4 {[%emt 0:00:05]} Nf6 {[%emt 0:00:05]} 5. Nc3 {[%emt 0:00:05]} Nc6 {[%emt 0:00:03]} 6. f3 {[%emt 0:00:07]} e5 {[%emt 0:02:36]} 7. Nb3 {[%emt 0:00:07]} Be7 {[%emt 0:00:01]} 8. Be3 {[%emt 0:00:08]} O-O {[%emt 0:00:17]} 9. Qd2 {[%emt 0:00:08]} a5 {[%emt 0:01:20]} 10. Bb5 {[%emt 0:00:07]} Be6 {[%emt 0:00:43]} 11. O-O-O {[%emt 0:00:07]} Qb8 {[%emt 0:06:41][%cal Oa5a4] B56: Classical Sicilian: Unusual Lines.} 12. Kb1 {[%emt 0:21:27]} Rc8 {[%emt 0:06:23][%cal Oa5a4,Bf8c8,Bc8c7,Bc7d7,Bd7b7,Bb7b4][%mdl 32]} 13. g4 {[%emt 0:05:40]} Na7 $146 {[%emt 0:11:57] The position is equal.} (13... a4 14. Nxa4 Rxa4 15. Bxa4 b5 16. Bxb5 Qxb5 17. Nc1 Na5 18. Qd3 Bc4 19. Qa3 Be6 {0-1 Costa,L (2349)-Bromberger,S (2472) Augsburg Gutmann Memorial 7th 2022 (10)}) 14. Bxa7 {[%emt 0:05:01]} (14. Nxa5 $2 Rxc3 15. Qxc3 Nxb5 $19) 14... Qxa7 {[%emt 0:00:15]} 15. a4 {[%emt 0:01:00]} Rc7 {[%emt 0:02:42]} 16. Nd5 {[%emt 0:07:45]} Nxd5 {[%emt 0:01:49]} 17. exd5 {[%emt 0:00:06]} Bd7 {[%emt 0:00:09]} 18. Bxd7 {[%emt 0:01:09]} Rxd7 {[%emt 0:00:02]} 19. Qe2 {[%emt 0:05:10]} (19. Qd3 $1 $14) 19... b5 {[%emt 0:02:09]} 20. Qxb5 {[%emt 0:03:23][%cal Ob3a5]} Rb7 $36 {[%emt 0:05:03][%mdl 2048] Black has the initiative.} 21. Qc4 {[%emt 0:00:31]} Rb4 {[%emt 0:01:50][%mdl 1024] Black has compensation.} 22. Qc6 {[%emt 0:03:21]} Rb6 {[%emt 0:07:36]} 23. Qc4 {[%emt 0:03:20]} Qd7 {[%emt 0:14:18]} 24. Rhe1 {[%emt 0:03:19]} Rc8 $1 {[%emt 0:00:14]} 25. Qd3 {[%emt 0:02:09]} ({Much weaker is} 25. Qe4 Rb4 26. Qd3 Qxa4 $15) 25... Qxa4 {[%emt 0:00:55]} 26. Re4 {[%emt 0:00:10]} Qb5 {[%emt 0:00:06]} 27. Qxb5 {[%emt 0:06:13]} Rxb5 {[%emt 0:03:36]} 28. Rd3 {[%emt 0:02:59]} Bd8 {[%emt 0:01:58]} 29. f4 {[%emt 0:06:18]} f6 {[%emt 0:05:38]} 30. Nd2 {[%emt 0:00:28]} Bb6 {[%emt 0:03:58]} 31. Nc4 {[%emt 0:03:57]} Bc5 {[%emt 0:00:36]} 32. f5 {[%emt 0:01:13]} Rcb8 {[%emt 0:01:36]} (32... Bd4 33. Rexd4 Rbc5 (33... exd4 $2 {is the wrong capture.} 34. Nxd6 $18) 34. Nxd6 exd4 35. Nxc8 (35. Rxd4 $2 Rd8 $19) 35... Rxc8 36. Rxd4 $18) 33. c3 {[%emt 0:01:37]} a4 {[%emt 0:01:50]} 34. Kc2 {[%emt 0:00:16]} Rb3 {[%emt 0:00:26]} 35. Rd1 {[%emt 0:04:06]} a3 {[%emt 0:00:15]} 36. bxa3 {[%emt 0:01:46]} Bxa3 {[%emt 0:00:07]} 37. Re3 {[%emt 0:00:32]} Bc5 {[%emt 0:06:05]} 38. Re2 {[%emt 0:00:20] Weighted Error Value: White=0.06 (flawless) /Black=0.08 (flawless)   Mistake:       	White=1     	---        Inaccurate:     	White=1     	Black=3      OK:         	White=18    	Black=11     Best:        	White=1     	---        Strong:       	---       	Black=1} 1/2-1/2

[Event "Reykjavik Open 2025"]
[Site "Reykjavik"]
[Date "2025.04.10"]
[Round "3.11"]
[White "Bekker, Stefan"]
[Black "Amar, Elham"]
[Result "1/2-1/2"]
[Annotator "TA"]
[ECO "B30"]
[WhiteElo "2358"]
[BlackElo "2546"]
[PlyCount "60"]
[EventDate "2025.04.09"]
[EventType "swiss"]
[EventCountry "ISL"]
[SourceTitle "playchess.com"]
[Source "ChessBase"]
[SourceQuality "1"]
[TimeControl "40/5400+30:1800+30"]

{[%evp 13,60,25,26,-3,-2,-22,-20,-9,-12,-38,-10,-32,-36,-32,-30,-35,-36,-33,-37,-31,-30,-30,-27,-30,-30,-30,-32,-22,-19,-23,-18,-30,-23,-28,-9,-55,-21,-46,-1,-3,12,0,19,-57,49,44,42,41,40]} 1. e4 {[%emt 0:00:05]} c5 {[%emt 0:02:30]} 2. Nf3 {[%emt 0:00:06]} Nc6 {[%emt 0:00:09]} 3. Bb5 {[%emt 0:00:06][%cal Bf1b5,Bb5a4,Ba4b3][%mdl 32]} e6 {[%emt 0:00:05]} 4. O-O {[%emt 0:06:25]} Nge7 {[%emt 0:00:11]} 5. Re1 {[%emt 0:03:07]} Nd4 {[%emt 0:01:49]} 6. Nxd4 {[%emt 0:02:25]} cxd4 {[%emt 0:00:05]} 7. c3 {[%emt 0:00:19]} a6 {[%emt 0:00:05]} 8. Ba4 {[%emt 0:07:46] B30: Sicilian: 2...Nc6 3 Bb5, lines without ...g6.} b5 {[%emt 0:01:02]} 9. Bb3 {[%emt 0:00:25]} Nc6 $1 {[%emt 0:00:26]} 10. a4 {[%emt 0:09:37] [#] The position is equal.} b4 {[%emt 0:01:42]} 11. Bd5 $146 {[%emt 0:00:33]} (11. d3 bxc3 12. bxc3 Qf6 13. c4 Bb4 14. Rf1 Qg6 15. Nd2 O-O 16. f4 f5 17. e5 {0-1 Bodrozic,T (2363)-Rapport,R (2752) Bundesliga 1920 2019 (15.4)}) 11... Bc5 {[%emt 0:00:32]} (11... exd5 12. exd5+ Be7 13. d6 $11) (11... Be7 $5) 12. cxb4 {[%emt 0:00:59]} Bxb4 {[%emt 0:00:18]} 13. Bxc6 {[%emt 0:04:50]} dxc6 {[%emt 0:00:05]} 14. b3 {[%emt 0:00:18]} e5 {[%emt 0:06:37]} 15. Ba3 {[%emt 0:00:17]} c5 {[%emt 0:07:53]} 16. Bxb4 {[%emt 0:05:16]} cxb4 {[%emt 0:00:01]} 17. d3 {[%emt 0:10:40]} Be6 {[%emt 0:01:18]} 18. Nd2 {[%emt 0:00:05]} Rc8 {[%emt 0:01:23]} 19. Nc4 {[%emt 0:00:02]} Bxc4 {[%emt 0:00:27]} 20. dxc4 {[%emt 0:01:52]} O-O {[%emt 0:00:05][%cal Be8g8,Bg8h8,Bh8g7][%mdl 32]} 21. Qd2 {[%emt 0:06:04]} a5 {[%emt 0:00:48]} 22. f4 {[%emt 0:00:13]} f6 {[%emt 0:01:52]} 23. f5 {[%emt 0:00:42]} Qd7 {[%emt 0:00:32]} 24. Qd3 {[%emt 0:00:08]} (24. Qe2 $11 {should be considered.}) 24... g6 {[%emt 0:01:29]} 25. Rf1 {[%emt 0:00:26][%cal Be1f1,Bf1f3,Bf3f5][%mdl 32]} Kh8 {[%emt 0:01:35]} 26. Rf3 {[%emt 0:00:13]} Rg8 {[%emt 0:02:00]} 27. Raf1 {[%emt 0:03:19] fxg6 is the strong threat.} Qc6 {[%emt 0:00:12]} 28. h3 {[%emt 0:01:27]} (28. fxg6 $11 Rxg6 29. R1f2) 28... Rc7 {[%emt 0:01:14]} (28... g5 $15) 29. fxg6 $14 {[%emt 0:08:26]} Rxg6 {[%emt 0:00:06]} 30. Rf5 {[%emt 0:00:18]} Kg7 {[%emt 0:01:46] Weighted Error Value: White=0.14 (very precise) /Black=0.15 (very precise)   Mistake:       	White=2     	Black=1      Inaccurate:     	White=1     	Black=3      OK:         	White=10    	Black=5      Best:        	White=2     	---        Strong:       	---       	Black=1} 1/2-1/2

[Event "Reykjavik Open 2025"]
[Site "Reykjavik"]
[Date "2025.04.10"]
[Round "3.12"]
[White "Li, Guohao"]
[Black "Stefansson, Vignir Vatnar"]
[Result "1/2-1/2"]
[Annotator "TA"]
[ECO "D37"]
[WhiteElo "2356"]
[BlackElo "2536"]
[PlyCount "80"]
[EventDate "2025.04.09"]
[EventType "swiss"]
[EventCountry "ISL"]
[SourceTitle "playchess.com"]
[Source "ChessBase"]
[SourceQuality "1"]
[TimeControl "40/5400+30:1800+30"]

{[%evp 9,80,27,26,17,12,5,11,22,19,16,26,29,23,10,19,19,27,24,40,19,20,21,43,15,12,17,20,0,14,0,14,16,18,13,14,18,14,14,0,11,19,14,12,0,14,0,0,0,21,12,11,12,6,6,6,11,16,0,9,3,8,1,6,-15,48,55,64,62,72,58,62,54,59]} 1. d4 {[%emt 0:00:02]} Nf6 {[%emt 0:00:07]} 2. c4 {[%emt 0:00:06]} e6 {[%emt 0:00:36]} 3. Nf3 {[%emt 0:00:19]} d5 {[%emt 0:00:35]} 4. Nc3 {[%emt 0:00:14]} a6 {[%emt 0:05:22]} 5. cxd5 {[%emt 0:02:17]} exd5 {[%emt 0:00:07]} 6. Bf4 {[%emt 0:01:24] D37: Queen's Gambit Declined: 5 Bf4.} Bd6 {[%emt 0:00:09]} 7. Be5 {[%emt 0:00:23]} Be6 {[%emt 0:01:32]} 8. e3 {[%emt 0:00:19] The position is equal.} Bxe5 {[%emt 0:00:25]} 9. dxe5 {[%emt 0:00:47]} Nfd7 {[%emt 0:01:34]} 10. Be2 $146 {[%emt 0:02:12][%cal Oe1g1]} (10. Qd4 c5 11. Qf4 Nc6 12. Rd1 Ne7 13. Bd3 h6 14. O-O g5 15. Qg3 Qc7 16. e4 {1-0 Gasparyan,E (2371)-Stefansson,V (2530) EU-ch 24th Petrovac 2024 (8)}) 10... Nc6 {[%emt 0:03:11]} 11. Nxd5 {[%emt 0:04:50]} Ndxe5 {[%emt 0:01:15]} 12. Nc3 {[%emt 0:00:46]} O-O {[%emt 0:04:36]} 13. O-O {[%emt 0:00:12]} Qf6 {[%emt 0:07:23]} 14. Qa4 {[%emt 0:07:16]} Nd7 {[%emt 0:15:13]} 15. Rfd1 {[%emt 0:04:43]} Nb6 {[%emt 0:05:41]} 16. Qc2 {[%emt 0:01:54]} Bf5 {[%emt 0:02:39] Successful Defense Black} 17. Qb3 {[%emt 0:00:43]} Be6 {[%emt 0:01:38]} 18. Qc2 {[%emt 0:00:23]} Bf5 {[%emt 0:00:22]} 19. Qb3 {[%emt 0:00:19]} Rad8 {[%emt 0:03:15]} 20. Rxd8 {[%emt 0:03:13]} Rxd8 {[%emt 0:00:06]} 21. Rd1 {[%emt 0:00:19]} h6 {[%emt 0:01:49]} 22. h3 {[%emt 0:00:41]} Qe7 {[%emt 0:03:16]} 23. Rd2 {[%emt 0:06:40]} Rxd2 {[%emt 0:04:56]} 24. Nxd2 {[%emt 0:00:03]} Qd7 {[%emt 0:02:23]} 25. Nde4 {[%emt 0:04:37]} Qe7 {[%emt 0:01:37]} 26. Nd2 {[%emt 0:01:13]} Be6 {[%emt 0:06:28]} 27. Qc2 {[%emt 0:00:57]} Nb4 {[%emt 0:02:10][%csl LRa2,LRc2]} 28. Qe4 {[%emt 0:03:59]} c6 {[%emt 0:02:48]} 29. a3 {[%emt 0:06:08]} N4d5 {[%emt 0:00:05]} 30. Nxd5 {[%emt 0:00:59]} Nxd5 {[%emt 0:00:06][%cal Bb6d5,Bd5f6,Bf6d7][%mdl 32]} 31. Qd4 {[%emt 0:00:33]} Qf6 {[%emt 0:03:48]} 32. Qxf6 {[%emt 0:03:04]} Nxf6 $11 {[%emt 0:00:48][%mdl 4096] Endgame KBN-KBN} 33. e4 {[%emt 0:00:34]} g5 {[%emt 0:01:50]} 34. f3 {[%emt 0:00:39]} Kf8 {[%emt 0:00:42]} 35. Kf2 {[%emt 0:00:36]} Ke7 {[%emt 0:00:06]} 36. g4 {[%emt 0:05:31]} h5 {[%emt 0:08:40]} (36... Nd7 $11) 37. e5 $14 {[%emt 0:07:30]} Nd7 {[%emt 0:01:10]} 38. Ne4 {[%emt 0:00:01]} hxg4 {[%emt 0:00:27]} 39. fxg4 {[%emt 0:00:27]} Nxe5 {[%emt 0:00:08]} 40. Nxg5 {[%emt 0:00:02]} Bd5 {[%emt 0:06:16] Weighted Error Value: White=0.06 (flawless) /Black=0.07 (flawless)   Mistake:       	---       	Black=1      Inaccurate:     	White=1     	---        OK:         	White=13    	Black=16     Best:        	White=2     	Black=1} 1/2-1/2

[Event "Reykjavik Open 2025"]
[Site "Reykjavik"]
[Date "2025.04.10"]
[Round "3.13"]
[White "Draskovic, Luka"]
[Black "Borne, Felix"]
[Result "1/2-1/2"]
[Annotator "TA"]
[ECO "A14"]
[WhiteElo "2488"]
[BlackElo "2225"]
[PlyCount "88"]
[EventDate "2025.04.09"]
[EventType "swiss"]
[EventCountry "ISL"]
[SourceTitle "playchess.com"]
[Source "ChessBase"]
[SourceQuality "1"]
[TimeControl "40/5400+30:1800+30"]

{[%evp 20,88,22,30,29,27,74,13,15,9,7,0,0,0,0,0,12,7,38,45,38,45,71,76,115,36,31,31,31,20,36,22,41,24,20,0,87,88,90,85,97,85,97,114,138,129,481,463,423,411,399,353,411,379,341,33,52,0,0,0,0,0,0,0,0,0,0,0,0,0,0]} 1. c4 {[%emt 0:00:05]} Nf6 {[%emt 0:00:12]} 2. Nf3 {[%emt 0:01:28]} e6 {[%emt 0:00:37]} 3. g3 {[%emt 0:01:04]} d5 {[%emt 0:01:19]} 4. Bg2 {[%emt 0:00:09]} Be7 {[%emt 0:00:13]} 5. O-O {[%emt 0:00:30]} O-O {[%emt 0:00:09]} 6. b3 {[%emt 0:01:44]} c5 {[%emt 0:01:23]} 7. cxd5 {[%emt 0:02:34]} Nxd5 {[%emt 0:03:09]} 8. Bb2 {[%emt 0:00:36]} Nc6 {[%emt 0:08:30]} 9. d4 {[%emt 0:02:40]} cxd4 {[%emt 0:05:38]} 10. Nxd4 {[%emt 0:00:10]} Nxd4 {[%emt 0:04:04]} 11. Qxd4 {[%emt 0:00:48][%csl Gb2][%cal Rd4g7]} Bf6 {[%emt 0:01:21] A14: English Opening: 1...e6 with b3 by White.} 12. Qd2 {[%emt 0:00:06]} b6 {[%emt 0:01:23] [#]} (12... Bd7 $11 {feels stronger.}) 13. Rd1 {[%emt 0:28:34]} (13. Bxf6 $1 $16 Qxf6 14. Nc3 (14. Bxd5 exd5 15. Rd1 Bb7 $11)) 13... Bb7 $11 {[%emt 0:07:05]} 14. Na3 {[%emt 0:07:52] Black must now prevent e4.} Qe7 {[%emt 0:03:57]} 15. e4 {[%emt 0:13:23]} Bxb2 {[%emt 0:07:57]} 16. Qxb2 {[%emt 0:00:05]} Nb4 {[%emt 0:05:49][%cal Bd5b4,Bb4d3,Bd3c5][%mdl 32]} 17. Nc4 {[%emt 0:02:58]} Rfd8 {[%emt 0:05:22] Wards off Nd6} 18. a3 {[%emt 0:01:34]} Nd3 $146 {[%emt 0:00:53]} (18... Nc6 19. e5 f6 20. Nd6 fxe5 21. Nxb7 Qxb7 22. Rxd8+ Rxd8 23. Rc1 Rd6 24. Qc3 Qa6 25. Bxc6 Qxa3 {1-0 Buchholz,M (1858)-Pohle,S (1877) GER-chT Lands U20 2023 (1)}) 19. Qc2 {[%emt 0:00:56]} Nc5 {[%emt 0:04:20]} 20. b4 {[%emt 0:00:44]} Na6 {[%emt 0:03:09]} 21. Qa4 {[%emt 0:08:32]} Qc7 {[%emt 0:13:20] [#]} 22. Rxd8+ {[%emt 0:04:20]} (22. Bf1 $1 $16) 22... Rxd8 $14 {[%emt 0:00:11]} 23. Rd1 {[%emt 0:05:05]} Rxd1+ {[%emt 0:04:57]} 24. Qxd1 {[%emt 0:00:18]} Bc6 {[%emt 0:02:35]} 25. h4 {[%emt 0:04:00]} Kf8 {[%emt 0:05:12]} 26. Qd4 {[%emt 0:03:03]} Nb8 {[%emt 0:00:51]} 27. Nd6 {[%emt 0:02:43]} Qd7 {[%emt 0:02:38] [#]} (27... Ke7 $11 28. Nc4 (28. e5 Bxg2 29. Kxg2 Nd7 $11) 28... Bb5) 28. b5 $1 {[%emt 0:04:34]} Ba8 {[%emt 0:00:33]} 29. e5 {[%emt 0:02:07] White has more active pieces.} Bxg2 {[%emt 0:00:11]} 30. Kxg2 $16 {[%emt 0:00:01][%mdl 4096] Endgame KQN-KQN} Qc7 {[%emt 0:02:12]} 31. Qf4 {[%emt 0:01:13]} Qe7 {[%emt 0:03:21]} 32. Qe4 {[%emt 0:01:24]} f5 $2 {[%emt 0:01:32][%mdl 8192]} (32... Kg8 $16 {is a better chance.} 33. Qc4 Qd8) 33. Qc4 $18 {[%emt 0:00:36]} Qd7 {[%emt 0:01:04]} 34. a4 {[%emt 0:00:21]} Ke7 {[%emt 0:00:19]} 35. Qf4 {[%emt 0:00:38]} Kf8 {[%emt 0:01:33]} 36. g4 {[%emt 0:00:34]} g6 {[%emt 0:00:09]} 37. Kh2 $2 {[%emt 0:00:47]} (37. h5 $18) 37... Qe7 {[%emt 0:00:25]} 38. gxf5 {[%emt 0:00:12]} ({White should try} 38. Kg3 $14) 38... exf5 $11 {[%emt 0:00:41] The position is equal.} 39. e6 {[%emt 0:00:58]} Qxe6 {[%emt 0:00:31]} 40. Nxf5 {[%emt 0:00:21]} Qxf5 {[%emt 0:01:09]} 41. Qxb8+ {[%emt 0:30:02]} Kg7 {[%emt 0:01:08]} 42. Qxa7+ {[%emt 0:00:00]} Kh6 {[%emt 0:00:58]} 43. Qxb6 {[%emt 0:00:00]} Qf4+ {[%emt 0:00:07]} 44. Kg2 {[%emt 0:00:00] White threatens Qe3 and mate.} (44. Kg1 $5 Qg4+ $8 45. Kh2 Qxh4+ 46. Kg1 Qg4+ 47. Kh1 Qe4+ 48. f3 Qxf3+ 49. Kg1 $11) 44... Qg4+ {[%emt 0:00:07] Blacks defense is rewarded with a draw.   Weighted Error Value: White=0.28 (precise) /Black=0.34  Loses game:     	---       	Black=1      Missed win:     	White=1     	---        Mistake:       	White=3     	Black=2      Inaccurate:     	---       	Black=3      OK:         	White=14    	Black=11     Best:        	White=1     	Black=6} 1/2-1/2

[Event "Reykjavik Open 2025"]
[Site "Reykjavik"]
[Date "2025.04.10"]
[Round "3.14"]
[White "Garifullina, Leya"]
[Black "Vihaan Karthikeya N"]
[Result "1-0"]
[Annotator "RC"]
[ECO "B12"]
[WhiteElo "2459"]
[BlackElo "2024"]
[PlyCount "75"]
[EventDate "2025.04.09"]
[EventType "swiss"]
[EventCountry "ISL"]
[SourceTitle "playchess.com"]
[Source "ChessBase"]
[SourceQuality "1"]
[TimeControl "40/5400+30:1800+30"]

1. e4 {[%emt 0:00:13]} c6 {[%emt 0:00:07]} 2. d4 {[%emt 0:00:07]} d5 {[%emt 0:00:05]} 3. e5 {[%emt 0:00:24]} Bf5 {[%emt 0:00:10]} 4. Nf3 {[%emt 0:00:07]} e6 {[%emt 0:00:09]} 5. Be2 {[%emt 0:00:05]} Nd7 {[%emt 0:00:16]} 6. O-O {[%emt 0:00:10]} h6 {[%emt 0:00:10]} 7. a4 {[%emt 0:00:27]} Ne7 {[%emt 0:00:35]} 8. a5 {[%emt 0:01:47]} g5 {[%emt 0:01:12]} 9. Ne1 {[%emt 0:00:58]} Qc7 {[%emt 0:01:02]} 10. b4 {[%emt 0:01:11]} Rg8 {[%emt 0:00:40]} 11. c3 {[%emt 0:02:58]} Bg7 {[%emt 0:04:09]} 12. f4 {[%emt 0:02:23]} O-O-O {[%emt 0:02:55]} 13. b5 {[%emt 0:03:08]} cxb5 {[%emt 0:00:21]} 14. Bxb5 {[%emt 0:07:56]} f6 {[%emt 0:03:28]} 15. a6 {[%emt 0:01:03]} b6 {[%emt 0:00:14]} 16. Ba3 {[%emt 0:00:42]} Nb8 {[%emt 0:02:13]} 17. Nd2 {[%emt 0:01:19]} gxf4 {[%emt 0:05:43]} 18. Rc1 {[%emt 0:11:26]} Nec6 {[%emt 0:04:38]} 19. Bd6 {[%emt 0:05:38]} Rxd6 {[%emt 0:00:23]} 20. exd6 {[%emt 0:00:05]} Qxd6 {[%emt 0:00:27]} 21. c4 {[%emt 0:00:16]} Nxd4 {[%emt 0:02:20]} 22. cxd5+ {[%emt 0:01:10]} Kd8 {[%emt 0:00:18]} 23. Bc4 {[%emt 0:01:06]} exd5 {[%emt 0:02:52]} 24. Bd3 {[%emt 0:00:51]} Bf8 {[%emt 0:06:19]} 25. Ndf3 {[%emt 0:01:18]} Nxf3+ {[%emt 0:00:54]} 26. Nxf3 {[%emt 0:00:33]} Bh3 {[%emt 0:03:28]} 27. Rc2 {[%emt 0:01:19]} Nd7 {[%emt 0:02:52]} 28. Kh1 {[%emt 0:01:22]} Bg4 {[%emt 0:01:21]} 29. Rd2 {[%emt 0:00:34]} Qe6 {[%emt 0:06:17]} 30. Be2 {[%emt 0:01:27]} Bb4 {[%emt 0:07:20]} 31. Rxd5 {[%emt 0:04:15]} Re8 {[%emt 0:00:53]} 32. Bc4 {[%emt 0:02:19]} Re7 {[%emt 0:10:19]} 33. Qb3 {[%emt 0:01:54]} Bxf3 {[%emt 0:02:44]} 34. gxf3 {[%emt 0:01:50]} Bc5 {[%emt 0:01:41]} 35. Rfd1 {[%emt 0:00:55]} Qe3 {[%emt 0:04:16]} 36. R5d3 {[%emt 0:05:10]} Qf2 {[%emt 0:01:33]} 37. Be6 {[%emt 0:00:25]} Be3 {[%emt 0:05:33]} 38. Qd5 {[%emt 0:00:32]} 1-0